fUSD/lending_fUSD_20251217
["ID","MTS","AMOUNT","RATE_DAILY","PERIOD"]
[398864026,1765935044403,-150.0,0.00017879,2]
[398864027,1765935044412,-1500.0,0.00017882,2]
[398864028,1765935044427,-311.1,0.00017896,2]
[398864029,1765935044440,-227.19805544,0.00017903,2]
[398864030,1765935044449,-736.0,0.00017914,2]
[398864031,1765935044459,-150.0,0.00017932,2]
[398864032,1765935044469,-500.0,0.00017945,2]
[398864033,1765935044479,-500.0,0.00017945,2]
[398864034,1765935044489,-500.0,0.00017945,2]
[398864035,1765935044501,-500.0,0.00017945,2]
[398864036,1765935044511,-150.0,0.00017945,2]
[398864037,1765935044521,-161.65,0.0001795,2]
[398864038,1765935044537,-2000.0,0.00017961,2]
[398864039,1765935044548,-150.0,0.00017964,2]
[398864040,1765935044558,-150.0,0.00017964,2]
[398864041,1765935044568,-300.0,0.00017999,2]
[398864042,1765935044578,-3496.84157916,0.00018,3]
[398864043,1765935044588,-127435.11652824,0.00018,2]
[398864044,1765935044597,-35803.08888677,0.00018,2]
[398864045,1765935044607,-1184.82213164,0.00018,2]
[398864046,1765935044618,-44587.7951138,0.00018,2]
[398864047,1765935044629,-543.76,0.00018001,2]
[398864048,1765935044639,-150.0,0.00018037,2]
[398864049,1765935044654,-150.0,0.00018037,2]
[398864050,1765935044664,-150.0,0.00018037,2]
[398864051,1765935044675,-150.0,0.00018037,2]
[398864052,1765935044686,-2000.0,0.00018041,2]
[398864053,1765935044698,-500.0,0.00018082,2]
[398864054,1765935044709,-500.0,0.00018082,2]
[398864055,1765935044721,-500.0,0.00018082,2]
[398864056,1765935044731,-500.0,0.00018082,2]
[398864057,1765935044740,-1500.0,0.00018082,2]
[398864058,1765935044750,-1500.0,0.00018082,2]
[398864059,1765935044760,-150.0,0.00018082,2]
[398864060,1765935044769,-500.0,0.00018082,2]
[398864061,1765935044779,-150.0,0.00018082,2]
[398864062,1765935044788,-500.0,0.00018082,2]
[398864063,1765935044798,-566.0,0.00018082,2]
[398864064,1765935044807,-150.0,0.00018082,2]
[398864065,1765935044817,-150.0,0.00018082,2]
[398864066,1765935044826,-1000.0,0.00018082,2]
[398864067,1765935044835,-500.0,0.00018083,2]
[398864068,1765935044844,-500.0,0.00018084,2]
[398864069,1765935044854,-1771.28465308,0.000181,2]
[398864070,1765935044864,-227.19805544,0.00018102,2]
[398864071,1765935044873,-150.0,0.0001811,2]
[398864072,1765935044883,-150.0,0.0001811,2]
[398864073,1765935044895,-150.0,0.00018142,2]
[398864074,1765935044905,-617.40005154,0.00018171,2]
[398864075,1765935044915,-1500.0,0.00018182,2]
[398864076,1765935044925,-1500.0,0.00018182,2]
[398864077,1765935044934,-150.0,0.00018195,2]
[398864078,1765935044944,-506.28893035,0.00018219,2]
[398864079,1765935044953,-500.0,0.00018219,2]
[398864080,1765935044963,-510.06569153,0.00018219,2]
[398864081,1765935044972,-500.0,0.00018219,2]
[398864082,1765935044982,-150.0,0.00018219,2]
[398864083,1765935044992,-500.0,0.00018219,2]
[398864084,1765935045002,-150.0,0.00018219,2]
[398864085,1765935045012,-500.0,0.00018219,2]
[398864086,1765935045021,-566.0,0.00018219,2]
[398864087,1765935045031,-150.0,0.00018219,2]
[398864088,1765935045040,-150.0,0.00018219,2]
[398864089,1765935045050,-150.0,0.00018219,2]
[398864090,1765935045060,-150.0,0.00018219,2]
[398864091,1765935045069,-150.0,0.00018219,2]
[398864092,1765935045079,-150.0,0.00018219,2]
[398864093,1765935045088,-500.0,0.00018219,2]
[398864094,1765935045098,-150.0,0.00018219,2]
[398864095,1765935045107,-500.0,0.00018219,2]
[398864096,1765935045116,-150.0,0.00018219,2]
[398864097,1765935045126,-500.0,0.00018219,2]
[398864098,1765935045135,-150.0,0.00018219,2]
[398864099,1765935045144,-150.67470189,0.00018219,2]
[398864100,1765935045153,-500.0,0.00018219,2]
[398864101,1765935045163,-150.0,0.00018219,2]
[398864102,1765935045172,-500.0,0.00018219,2]
[398864103,1765935045181,-500.0,0.00018219,2]
[398864104,1765935045191,-150.0,0.00018219,2]
[398864105,1765935045200,-500.0,0.00018219,2]
[398864106,1765935045209,-150.0,0.00018227,2]
[398864107,1765935045219,-222.86233316,0.00018256,2]
[398864108,1765935045228,-150.0,0.00018256,2]
[398864109,1765935045238,-150.0,0.00018256,2]
[398864110,1765935045247,-500.0,0.00018267,2]
[398864111,1765935045257,-500.0,0.00018267,2]
[398864112,1765935045267,-500.0,0.00018267,2]
[398864113,1765935045289,-500.0,0.00018267,2]
[398864114,1765935045301,-500.0,0.00018267,2]
[398864115,1765935045311,-543.76,0.00018275,2]
[398864116,1765935045321,-1500.0,0.00018282,2]
[398864117,1765935045331,-1500.0,0.00018282,2]
[398864118,1765935045342,-227.19805544,0.00018302,2]
[398864119,1765935045351,-168.0,0.00018334,2]
[398864120,1765935045362,-150.0,0.00018353,2]
[398864121,1765935045372,-150.0,0.00018353,2]
[398864122,1765935045382,-150.0,0.00018353,2]
[398864123,1765935045392,-150.0,0.00018353,2]
[398864124,1765935045402,-188.22,0.00018354,2]
[398864125,1765935045411,-823.0,0.00018355,2]
[398864126,1765935045421,-500.0,0.00018356,2]
[398864127,1765935045430,-500.0,0.00018356,2]
[398864128,1765935045440,-150.0,0.00018356,2]
[398864129,1765935045450,-572.55907255,0.00018356,2]
[398864130,1765935045460,-200.0,0.00018356,2]
[398864131,1765935045471,-500.0,0.00018356,2]
[398864132,1765935045481,-566.0,0.00018356,2]
[398864133,1765935045491,-200.0,0.00018356,2]
[398864134,1765935045501,-150.0,0.00018356,2]
[398864135,1765935045511,-150.0,0.00018356,2]
[398864136,1765935045523,-500.0,0.00018356,2]
[398864137,1765935045533,-150.0,0.00018356,2]
[398864138,1765935045544,-500.0,0.00018356,2]
[398864139,1765935045554,-150.0,0.00018356,2]
[398864140,1765935045564,-500.0,0.00018356,2]
[398864141,1765935045574,-150.0,0.00018356,2]
[398864142,1765935045584,-500.0,0.00018356,2]
[398864143,1765935045594,-150.0,0.00018356,2]
[398864144,1765935045604,-500.0,0.00018356,2]
[398864145,1765935045614,-500.0,0.00018356,2]
[398864146,1765935045623,-597.81263975,0.00018356,2]
[398864147,1765935045632,-1500.0,0.00018382,2]
[398864148,1765935045642,-1500.0,0.00018382,2]
[398864149,1765935045656,-1010.0,0.000184,2]
[398864150,1765935045667,-150.0,0.00018402,2]
[398864151,1765935045677,-150.0,0.00018402,2]
[398864152,1765935045687,-250.95,0.00018455,2]
[398864153,1765935045696,-1500.0,0.00018482,2]
[398864154,1765935045707,-151.0,0.0001849,2]
[398864155,1765935045717,-506.85204993,0.00018493,2]
[398864156,1765935045726,-500.0,0.00018493,2]
[398864157,1765935045737,-250.56704561,0.00018493,2]
[398864158,1765935045748,-500.0,0.00018493,2]
[398864159,1765935045757,-566.0,0.00018493,2]
[398864160,1765935045767,-150.0,0.00018493,2]
[398864161,1765935045777,-200.0,0.00018493,2]
[398864162,1765935045786,-500.0,0.00018493,2]
[398864163,1765935045795,-150.0,0.00018493,2]
[398864164,1765935045805,-500.0,0.00018493,2]
[398864165,1765935045815,-184.82839531,0.00018493,2]
[398864166,1765935045824,-150.0,0.00018493,2]
[398864167,1765935045838,-500.0,0.00018493,2]
[398864168,1765935045847,-500.0,0.00018493,2]
[398864169,1765935045857,-200.91809234,0.00018493,2]
[398864170,1765935045866,-500.0,0.00018493,2]
[398864171,1765935045876,-500.0,0.00018493,2]
[398864172,1765935045886,-227.19805544,0.00018501,2]
[398864173,1765935045896,-150.0,0.00018512,2]
[398864174,1765935045905,-168.44,0.00018518,2]
[398864175,1765935045916,-150.0,0.00018548,2]
[398864176,1765935045926,-150.0,0.00018548,2]
[398864177,1765935045936,-150.0,0.00018564,2]
[398864178,1765935045946,-3292.0,0.00018577,2]
[398864179,1765935045956,-1500.0,0.00018581,2]
[398864180,1765935045966,-150.0,0.00018607,2]
[398864181,1765935045976,-3732.0986529,0.0001862,2]
[398864182,1765935045985,-500.0,0.0001863,2]
[398864183,1765935045995,-500.0,0.0001863,2]
[398864184,1765935046006,-566.0,0.0001863,2]
[398864185,1765935046016,-150.0,0.0001863,2]
[398864186,1765935046025,-150.0,0.0001863,2]
[398864187,1765935046035,-500.0,0.0001863,2]
[398864188,1765935046045,-150.0,0.0001863,2]
[398864190,1765935046055,-500.0,0.0001863,2]
[398864192,1765935046066,-500.0,0.0001863,2]
[398864194,1765935046075,-500.0,0.0001863,2]
[398864195,1765935046085,-500.0,0.0001863,2]
[398864196,1765935046095,-187.28,0.00018637,2]
[398864197,1765935046104,-2601.446,0.00018661,2]
[398864198,1765935046114,-150.0,0.0001867,2]
[398864199,1765935046123,-150.0,0.0001867,2]
[398864200,1765935046132,-150.0,0.0001867,2]
[398864201,1765935046142,-172.169,0.0001867,2]
[398864202,1765935046153,-150.0,0.00018694,2]
[398864203,1765935046163,-150.0,0.00018694,2]
[398864204,1765935046175,-227.19805544,0.00018701,2]
[398864205,1765935046184,-999.9999,0.00018718,2]
[398864206,1765935046194,-640.24385345,0.00018719,2]
[398864207,1765935046204,-1000.0,0.0001876,2]
[398864208,1765935046215,-500.0,0.00018767,2]
[398864209,1765935046226,-500.0,0.00018767,2]
[398864210,1765935046236,-566.0,0.00018767,2]
[398864211,1765935046247,-250.0,0.00018767,2]
[398864212,1765935046256,-150.0,0.00018767,2]
[398864213,1765935046266,-500.0,0.00018767,2]
[398864214,1765935046277,-204.32459893,0.00018767,2]
[398864215,1765935046287,-500.0,0.00018767,2]
[398864216,1765935046297,-374.74446992,0.00018767,2]
[398864217,1765935046307,-500.0,0.00018767,2]
[398864218,1765935046316,-168.0,0.00018769,2]
[398864219,1765935046327,-150.0,0.00018775,2]
[398864220,1765935046337,-1500.0,0.00018781,2]
[398864221,1765935046346,-1500.0,0.00018781,2]
[398864222,1765935046355,-500.0,0.00018799,2]
[398864223,1765935046364,-500.0,0.00018799,2]
[398864224,1765935046373,-500.0,0.00018799,2]
[398864225,1765935046386,-500.0,0.00018799,2]
[398864226,1765935046395,-500.0,0.00018799,2]
[398864227,1765935046404,-500.0,0.00018799,2]
[398864228,1765935046414,-300.0,0.00018799,2]
[398864229,1765935046423,-548868.4886,0.000188,2]
[398864230,1765935046433,-150.98,0.000188,2]
[398864231,1765935046443,-150.98,0.000188,2]
[398864232,1765935046452,-150.98,0.000188,2]
[398864233,1765935046462,-150.98,0.000188,2]
[398864234,1765935046471,-150.98,0.000188,2]
[398864235,1765935046481,-150.98,0.000188,2]
[398864236,1765935046490,-150.98,0.000188,2]
[398864237,1765935046499,-150.98,0.000188,2]
[398864238,1765935046508,-150.98,0.000188,2]
[398864239,1765935046518,-150.98,0.000188,2]
[398864240,1765935046527,-150.98,0.000188,2]
[398864241,1765935046537,-150.98,0.000188,2]
[398864242,1765935046547,-150.98,0.000188,2]
[398864243,1765935046557,-150.98,0.000188,2]
[398864244,1765935046566,-150.98,0.000188,2]
[398864245,1765935046575,-150.98,0.000188,2]
[398864246,1765935046585,-150.98,0.000188,2]
[398864247,1765935046595,-150.98,0.000188,2]
[398864248,1765935046605,-150.98,0.000188,2]
[398864249,1765935046614,-150.98,0.000188,2]
[398864250,1765935046624,-150.98,0.000188,2]
[398864251,1765935046634,-150.98,0.000188,2]
[398864252,1765935046645,-150.98,0.000188,2]
[398864253,1765935046659,-150.98,0.000188,2]
[398864254,1765935046668,-150.98,0.000188,2]
[398864255,1765935046678,-150.98,0.000188,2]
[398864256,1765935046688,-150.98,0.000188,2]
[398864257,1765935046699,-150.98,0.000188,2]
[398864258,1765935046711,-150.98,0.000188,2]
[398864259,1765935046722,-150.98,0.000188,2]
[398864260,1765935046731,-150.98,0.000188,2]
[398864261,1765935046740,-150.98,0.000188,2]
[398864262,1765935046750,-150.98,0.000188,2]
[398864263,1765935046763,-150.98,0.000188,2]
[398864264,1765935046772,-150.98,0.000188,2]
[398864265,1765935046782,-150.98,0.000188,2]
[398864266,1765935046791,-150.98,0.000188,2]
[398864267,1765935046801,-150.98,0.000188,2]
[398864268,1765935046810,-2699.51306,0.0001881,2]
[398864269,1765935046823,-223.28073538,0.00018824,2]
[398864270,1765935046833,-150.0,0.00018828,2]
[398864271,1765935046843,-150.0,0.0001884,2]
[398864272,1765935046853,-150.0,0.0001884,2]
[398864273,1765935046862,-25000.0,0.00018874,3]
[398864274,1765935046872,-1500.0,0.00018881,3]
[398864275,1765935046882,-1500.0,0.00018881,3]
[398864276,1765935046892,-25000.0,0.00018882,3]
[398864277,1765935046902,-25000.0,0.00018891,3]
[398864279,1765935046911,-161.65,0.00018895,2]
[398864280,1765935046922,-9329.86564475,0.000189,2]
[398864281,1765935046932,-404.70951833,0.000189,3]
[398864282,1765935046942,-158.08541667,0.000189,2]
[398864283,1765935046951,-25000.0,0.000189,3]
[398864284,1765935046961,-481.35955285,0.000189,3]
[398864285,1765935046971,-858.00402554,0.000189,2]
[398864286,1765935046981,-227.19805544,0.000189,2]
[398864287,1765935046990,-3378.01013678,0.000189,3]
[398864288,1765935047000,-188.22,0.00018903,2]
[398864289,1765935047010,-500.0,0.00018904,2]
[398864290,1765935047019,-390.0,0.00018904,2]
[398864291,1765935047029,-566.0,0.00018904,2]
[398864292,1765935047039,-162.93514152,0.00018904,2]
[398864293,1765935047049,-500.0,0.00018904,2]
[398864294,1765935047059,-500.0,0.00018904,2]
[398864295,1765935047069,-500.0,0.00018904,2]
[398864296,1765935047078,-168.0,0.00018927,2]
[398864297,1765935047089,-168.0,0.00018946,2]
[398864298,1765935047099,-13648.0,0.00018959,2]
[398864299,1765935047108,-564.0,0.00018967,2]
[398864300,1765935047118,-1000.0,0.0001897,2]
[398864301,1765935047128,-1000.0,0.0001897,2]
[398864302,1765935047138,-1366.07845684,0.0001897,2]
[398864303,1765935047147,-1549.40721186,0.00018981,2]
[398864304,1765935047156,-405.10913485,0.00018986,2]
[398864305,1765935047166,-372.18657327,0.00018986,2]
[398864306,1765935047176,-291.06213928,0.00018986,2]
[398864307,1765935047185,-177.78518512,0.00018986,2]
[398864308,1765935047195,-155.14051023,0.00018986,2]
[398864309,1765935047205,-246.62946307,0.00018986,2]
[398864310,1765935047214,-176.45823881,0.00018986,2]
[398864311,1765935047224,-166.91715989,0.00018986,2]
[398864312,1765935047235,-235.5904803,0.00018986,2]
[398864313,1765935047244,-152.93167974,0.00018986,2]
[398864314,1765935047253,-152.46703937,0.00018986,2]
[398864315,1765935047264,-152.13508928,0.00018986,2]
[398864316,1765935047273,-234.22488303,0.00018986,2]
[398864317,1765935047283,-5461.0,0.00018997,2]
[398864318,1765935047293,-1036.83747208,0.00018997,5]
[398864319,1765935047303,-568.58435032,0.00018997,2]
[398864320,1765935047312,-500.0,0.00018997,2]
[398864321,1765935047322,-500.0,0.00018997,2]
[398864322,1765935047331,-413.25776068,0.00018997,2]
[398864323,1765935047340,-500.0,0.00018997,2]
[398864324,1765935047349,-500.0,0.00018997,2]
[398864325,1765935047359,-500.0,0.00018997,2]
[398864326,1765935047369,-182.31585142,0.00018997,2]
[398864327,1765935047380,-300.0,0.00018997,2]
[398864328,1765935047390,-53573.33757557,0.00018998,2]
[398864329,1765935047409,-1865.2,0.00018998,2]
[398864330,1765935047420,-13441.71464927,0.00018998,2]
[398864331,1765935047433,-68486.24246981,0.00018998,2]
[398864333,1765935049495,-1058.32946893,0.00018998,2]
[398864334,1765935049506,-537.47173744,0.00018998,2]
[398864335,1765935049518,-532.6831561,0.00018998,2]
[398864336,1765935049529,-5537.45975306,0.00018998,2]
[398864337,1765935050239,-173694.99516929,0.00018998,2]
[398864338,1765935053940,-500.0,0.00016905,2]
[398864339,1765935186484,315.0,0.000216,30]
[398864340,1765935274664,151.0,0.00023,120]
[398864341,1765935341345,159.25,7.755e-05,2]
[398864342,1765935341495,159.25,8.272e-05,2]
[398864343,1765935341706,159.25,8.789e-05,2]
[398864344,1765935342198,159.25,9.306e-05,2]
[398864345,1765935342371,159.25,9.823e-05,2]
[398864346,1765935342546,159.25,0.0001034,2]
[398864347,1765935342718,159.25,0.00010857,2]
[398864348,1765935342887,159.25,0.00011374,2]
[398864349,1765935352140,-159.25,0.00011891,2]
[398864357,1765936231639,-152.60960603,0.00012192,2]
[398864358,1765936231648,-250.0,0.00012192,2]
[398864359,1765936231657,-151.92,0.00012192,2]
[398864360,1765936231666,-250.0,0.00012192,2]
[398864361,1765936231675,-84.02325848,0.00012262,2]
[398864362,1765936231686,-165.97674152,0.00012262,2]
[398864363,1765936231695,-151.0,0.00012329,2]
[398864364,1765936231704,-159.25,0.00012408,2]
[398864365,1765936231713,-159.25,0.00012925,2]
[398864366,1765936231723,-250.0,0.00013411,2]
[398864367,1765936231731,-193.58299043,0.00013411,2]
[398864368,1765936231741,-159.25,0.00013442,2]
[398864369,1765936231750,-213.094576,0.00013462,2]
[398864370,1765936231758,-300.0,0.00013561,2]
[398864371,1765936231767,-1200.0,0.00013561,2]
[398864372,1765936231776,-9999.99,0.00013562,2]
[398864373,1765936231785,-150.99,0.00013562,2]
[398864374,1765936231794,-166.66,0.00013943,2]
[398864376,1765936231803,-159.25,0.00013959,2]
[398864378,1765936231812,-500.0,0.00014234,2]
[398864380,1765936231821,-500.0,0.00014234,2]
[398864382,1765936231831,-230.0305203,0.00014234,2]
[398864383,1765936231840,-500.0,0.00014234,2]
[398864384,1765936231849,-580.43097571,0.00014234,2]
[398864385,1765936231858,-500.0,0.00014234,2]
[398864386,1765936231870,-500.0,0.00014234,2]
[398864387,1765936231879,-500.0,0.00014234,2]
[398864388,1765936231888,-500.0,0.00014234,2]
[398864389,1765936231897,-500.0,0.00014234,2]
[398864390,1765936231906,-500.0,0.00014234,2]
[398864391,1765936231915,-500.0,0.00014234,2]
[398864392,1765936231924,-500.0,0.00014234,2]
[398864393,1765936231933,-553.90220355,0.00014234,2]
[398864394,1765936231942,-500.0,0.00014234,2]
[398864395,1765936231951,-500.0,0.00014234,2]
[398864396,1765936231961,-362.0049776,0.00014234,2]
[398864397,1765936231970,-500.0,0.00014234,2]
[398864398,1765936231979,-505.79055246,0.00014234,2]
[398864399,1765936231988,-500.0,0.00014234,2]
[398864400,1765936231997,-500.0,0.00014234,2]
[398864401,1765936232007,-500.0,0.00014234,2]
[398864402,1765936232016,-500.0,0.00014234,2]
[398864403,1765936232025,-500.0,0.00014234,2]
[398864404,1765936232035,-500.0,0.00014234,2]
[398864405,1765936232044,-407.26919175,0.00014234,2]
[398864406,1765936232053,-500.0,0.00014234,2]
[398864407,1765936232062,-500.0,0.00014234,2]
[398864408,1765936232071,-500.0,0.00014234,2]
[398864409,1765936232081,-500.0,0.00014234,2]
[398864410,1765936232090,-500.0,0.00014234,2]
[398864411,1765936232099,-500.0,0.00014234,2]
[398864412,1765936232109,-500.0,0.00014234,2]
[398864413,1765936232118,-580.43886658,0.00014234,2]
[398864414,1765936232127,-500.0,0.00014234,2]
[398864415,1765936232136,-500.0,0.00014234,2]
[398864416,1765936232145,-500.0,0.00014234,2]
[398864417,1765936232154,-500.0,0.00014234,2]
[398864418,1765936232163,-500.0,0.00014234,2]
[398864419,1765936232172,-500.0,0.00014234,2]
[398864420,1765936232181,-500.0,0.00014234,2]
[398864421,1765936232190,-500.0,0.00014234,2]
[398864422,1765936232199,-500.0,0.00014234,2]
[398864423,1765936232209,-500.0,0.00014234,2]
[398864424,1765936232218,-500.0,0.00014234,2]
[398864425,1765936232227,-500.0,0.00014234,2]
[398864426,1765936232237,-500.0,0.00014234,2]
[398864427,1765936232248,-500.0,0.00014234,2]
[398864428,1765936232258,-500.0,0.00014234,2]
[398864429,1765936232268,-500.0,0.00014234,2]
[398864430,1765936232278,-500.0,0.00014234,2]
[398864431,1765936232289,-500.0,0.00014234,2]
[398864432,1765936232298,-500.0,0.00014234,2]
[398864433,1765936232308,-500.0,0.00014234,2]
[398864434,1765936232317,-500.0,0.00014234,2]
[398864435,1765936232329,-500.0,0.00014234,2]
[398864436,1765936232339,-500.0,0.00014234,2]
[398864437,1765936232348,-500.0,0.00014234,2]
[398864438,1765936232358,-500.0,0.00014234,2]
[398864439,1765936232367,-500.0,0.00014234,2]
[398864440,1765936232377,-500.0,0.00014234,2]
[398864441,1765936232386,-500.0,0.00014234,2]
[398864442,1765936232395,-500.0,0.00014234,2]
[398864443,1765936232404,-500.0,0.00014234,2]
[398864444,1765936232413,-500.0,0.00014234,2]
[398864445,1765936232422,-500.0,0.00014234,2]
[398864446,1765936232431,-500.0,0.00014234,2]
[398864447,1765936232440,-400.0,0.00014234,2]
[398864448,1765936232449,-500.0,0.00014234,2]
[398864449,1765936232459,-500.0,0.00014234,2]
[398864450,1765936232474,-500.0,0.00014234,2]
[398864451,1765936232483,-500.0,0.00014234,2]
[398864452,1765936232492,-500.0,0.00014234,2]
[398864453,1765936232500,-503.51202142,0.00014235,2]
[398864454,1765936232510,-166.66,0.00014237,2]
[398864455,1765936232519,-1699.92740594,0.00014237,2]
[398864456,1765936232531,-1915.55259406,0.00014237,2]
[398864457,1765936232541,-152.52,0.00014272,2]
[398864458,1765936232550,-151.51,0.00014272,2]
[398864459,1765936232559,-151.74,0.00014272,2]
[398864460,1765936232567,-150.68,0.00014272,2]
[398864461,1765936232577,-3240.0,0.00014355,2]
[398864462,1765936232586,-159.25,0.00014476,2]
[398864463,1765936232596,-166.66,0.0001453,2]
[398864464,1765936232605,-166.66,0.00014824,2]
[398864465,1765936232614,-1680.0,0.00014917,2]
[398864466,1765936232623,-159.25,0.00014993,2]
[398864467,1765936232631,-500.0,0.00015064,2]
[398864468,1765936232640,-500.0,0.00015064,2]
[398864469,1765936232649,-500.0,0.00015064,2]
[398864470,1765936232658,-500.0,0.00015064,2]
[398864471,1765936232667,-504.6382898,0.00015064,2]
[398864472,1765936232676,-500.0,0.00015064,2]
[398864473,1765936232684,-500.0,0.00015064,2]
[398864474,1765936232693,-619.52663442,0.00015064,2]
[398864475,1765936232703,-202.18415543,0.00015064,2]
[398864476,1765936232712,-201.62589797,0.00015064,2]
[398864477,1765936232721,-187.10375317,0.00015073,2]
[398864478,1765936232730,-500.0,0.00015073,2]
[398864479,1765936232739,-500.0,0.00015073,2]
[398864480,1765936232748,-501.77884562,0.00015073,2]
[398864481,1765936232756,-313.75537432,0.00015073,2]
[398864482,1765936232767,-186.24462568,0.00015073,2]
[398864483,1765936232776,-166.66,0.00015118,2]
[398864484,1765936232786,-166.66,0.00015411,2]
[398864485,1765936232795,-159.25,0.0001551,2]
[398864486,1765936232803,-213.09457599,0.00015592,2]
[398864487,1765936232812,-1000.0,0.00015621,2]
[398864488,1765936232821,-503.48815273,0.00015621,2]
[398864489,1765936232831,-1000.0,0.00015621,2]
[398864490,1765936232840,-22854.80878583,0.000161,2]
[398864491,1765936232852,-1903.706576,0.000161,2]
[398864492,1765936232863,-999.0,0.000161,2]
[398864493,1765936232976,-10749.83539884,0.000161,2]
[398864494,1765936232991,-2369.38235258,0.000161,2]
[398864495,1765936233001,-22722.09,0.000161,2]
[398864496,1765936233012,-462.00862205,0.000161,2]
[398864497,1765936233022,-2108.01942602,0.000161,2]
[398864498,1765936233037,-868.46461215,0.000161,2]
[398864499,1765936233048,-2171.46289627,0.000161,2]
[398864500,1765936233059,-268.99999996,0.000161,2]
[398864519,1765936238850,-356.71,0.000161,2]
[398864520,1765936238923,-1681.37229598,0.000161,2]
[398864521,1765936238980,-387.81872437,0.000161,2]
[398864522,1765936238992,-741.25880839,0.000161,2]
[398864523,1765936239004,-312.96804041,0.000161,2]
[398864524,1765936239015,-1893.48,0.000161,2]
[398864525,1765936239027,-15464.74606115,0.000161,2]
[398864526,1765936239036,-415.23028169,0.00016168,2]
[398864527,1765936239045,-1500.0,0.00016168,2]
[398864528,1765936239055,-224.3059743,0.00016184,3]
[398864529,1765936239067,-467.44829173,0.00016184,3]
[398864530,1765936239078,-307.24573397,0.00016184,3]
[398864531,1765936239088,-13595.31675643,0.00016273,2]
[398864532,1765936239121,-141.57619751,0.00016273,2]
[398864533,1765936239130,-500.0,0.00016299,2]
[398864534,1765936239140,-481.35955285,0.00016373,2]
[398864535,1765936239150,-500.0,0.00016398,2]
[398864536,1765936239159,-61.72182118,0.00016398,2]
[398864537,1765936239171,-438.27817882,0.00016398,2]
[398864538,1765936239181,-500.0,0.00016399,2]
[398864539,1765936239190,-500.0,0.00016399,2]
[398864540,1765936239199,-390.03381002,0.00016399,2]
[398864553,1765936240607,-109.96618998,0.00016399,2]
[398864554,1765936240616,-500.0,0.00016399,2]
[398864555,1765936240625,-500.0,0.00016399,2]
[398864556,1765936240634,-500.0,0.00016399,2]
[398864557,1765936240643,-2351.0,0.00016408,2]
[398864558,1765936240651,-12609.38,0.00016438,2]
[398864559,1765936240660,-6126.0203325,0.00016565,2]
[398864560,1765936240671,-5417.92857466,0.00016565,2]
[398864561,1765936240788,-792.94577513,0.00016565,2]
[398864562,1765936240799,-1399.99827158,0.00016565,2]
[398864563,1765936240808,-166.66,0.00016633,2]
[398864564,1765936240817,-807.16429357,0.00016716,2]
[398864565,1765936240826,-227.28895904,0.00016757,2]
[398864566,1765936240836,-1356.13051834,0.00016857,2]
[398864567,1765936240846,-625.73090245,0.00016857,2]
[398864568,1765936240859,-293.89829399,0.00016857,2]
[398864578,1765936242939,-11461.13323909,0.00016857,2]
[398864579,1765936242948,-3027.82660871,0.00016986,2]
[398864632,1765936835573,-500.0,0.00013941,2]